Cogmind - Beta 13 @@@ ROGUE MODE // 2024.06.14 @ 01:25:20 Player: Udabudha Result: Destroyed by Y-45 Defender with Beam Rifle Performance ------------- Evolutions (1) 500 Regions Visited (2) 400 Robots Destroyed (14) 70 Value Destroyed (485) 485 Prototype IDs (0) 0 Alien Tech Used (0) 0 Bonus (0) 0 TOTAL SCORE: 1455 Bonus ------- None Cogmind --------- Core Integrity 0/400 Matter 300/300 Energy 100/100 System Corruption 0% Temperature Cool (9) Movement Core (100) Ox1 Location -9/Materials Parts ------- > --- POWER (1) -------- (None) > --- PROPULSION (3) --- (None) > --- UTILITY (3) ------ Small Storage Unit Power Shielding > --- WEAPON (2) ------- (None) > --- INVENTORY (8) ---- Medium Armor Plating Peak State ------------ > --- POWER ------------ Ion Engine > --- PROPULSION ------- Aluminum Leg Aluminum Leg Improved Aluminum Leg > --- UTILITY ---------- Small Storage Unit Sensor Array Power Shielding > --- WEAPON ----------- Beam Cannon Light Cannon > --- INVENTORY -------- Power Shielding EM Pulse Gun Assault Rifle [Rating: 10] Favorites ----------- Power Light Ion Engine Engine Light Ion Engine Propulsion Aluminum Leg Leg Aluminum Leg Utility Small Storage Unit Device Sensor Array Storage Small Storage Unit Protection Power Shielding Weapon Beam Cannon Energy Gun EM Pulse Gun Energy Cannon Beam Cannon Ballistic Gun Assault Rifle Ballistic Cannon Light Cannon Build | -11 -10 -9 ------- Run | Yrd Mat Mat Slots Evolved 2 | . . 2 Power . | . . . Propulsion 1 | . . 1 Utility 1 | . . 1 Weapon . | . . . Parts Attached 19 | 6 6 7 Power 2 | 1 1 . Engine 2 | 1 1 . Core . | . . . Reactor . | . . . Propulsion 5 | 2 . 3 Treads . | . . . Leg 5 | 2 . 3 Wheel . | . . . Hover . | . . . Flight . | . . . Utility 5 | 1 2 2 Device 1 | . 1 . Storage 1 | 1 . . Processor . | . . . Hackware . | . . . Protection 3 | . 1 2 Artifact . | . . . Weapon 7 | 2 3 2 Energy Gun 3 | 1 1 1 Energy Cannon 1 | . 1 . Ballistic Gun 2 | 1 . 1 Ballistic Cannon 1 | . 1 . Launcher . | . . . Special Weapon . | . . . Impact Weapon . | . . . Slashing Weapon . | . . . Piercing Weapon . | . . . Special Melee Weapon . | . . . Unidentified Prototypes . | . . . Parts Lost 11 | . . 11 Power 1 | . . 1 Propulsion 5 | . . 5 Utility 1 | . . 1 Weapon 4 | . . 4 Highest Loss Streak 8 | . . 8 To Critical Strikes . | . . . Average Slot Usage (%) 91 | . 99 84 Engine 10 | . 14 8 Leg 27 | . 28 27 Device 8 | . 6 10 Storage 12 | . 14 11 Protection 8 | . 6 9 Energy Gun 3 | . 7 . Energy Cannon 7 | . 5 8 Ballistic Gun 3 | . 8 . Ballistic Cannon 7 | . 6 8 Naked Turns . | . . . Heaviest Build 18 | 12 17 18 Greatest Support 33 | 20 20 33 Greatest Overweight (x) 3 | 3 . 2 Average Overweight (x) . | . . . Largest Inventory Capacity 8 | 8 8 8 Average Capacity 7 | 7 8 8 Most Carried 6 | 2 6 5 Average Carried 2 | . 2 2 Final Capacity 8 | 8 8 8 Final Carried 4 | 1 4 1 Class Distribution -------------------- 100% | Mutant Dominant Class ---------------- Mutant | -10/Materials Mutant | -9/Materials Resources | -11 -10 -9 ----------- Run | Yrd Mat Mat Matter Collected 483 | 228 142 113 Remotely . | . . . Salvage Created 489 | . 220 269 Parts 33 | . 15 18 Haulers Intercepted . | . . . Recyclers Shooed . | . . . Parts Field Recycled . | . . . Retrieved Matter . | . . . Parts Self-Destructed . | . . . Prevented . | . . . Kills | -11 -10 -9 ------- Run | Yrd Mat Mat Combat Hostiles Destroyed 12 | . 5 7 Guns 1 | . 1 . Cannons 9 | . 4 5 AOE 2 | . . 2 Classes Destroyed 4 | . 3 1 Operator 1 | . 1 . Watcher 1 | . 1 . Grunt 10 | . 5 5 Sentry 2 | . . 2 Best Kill Streak 3 | . 3 3 Combat Bots Only 3 | . 3 3 Max Kills in Single Turn 2 | . 1 2 Gunslinging . | . . . Exploded 2 | . . 2 Melee . | . . . Uniques/NPCs Destroyed . | . . . Combat | -11 -10 -9 -------- Run | Yrd Mat Mat Hostile Shots Fired 150 | . 13 137 Missed 39 | . 2 37 Damage Taken 1563 | . 147 1416 Core 434 | . 24 410 Absorbed by Shields . | . . . Redirected to Shielding 27 | . 6 21 Core Remaining (%) 95 | 100 90 . Volleys Fired 43 | 4 15 24 Largest 2 | 1 2 2 Hottest 95 | 40 95 95 Shots Fired 80 | 4 30 46 Gun 30 | 4 20 6 Cannon 50 | . 10 40 Launcher . | . . . Special . | . . . Kinetic 37 | . 15 22 Thermal 28 | . 5 23 Explosive . | . . . Electromagnetic 15 | 4 10 1 Robot Hit Streak 7 | 1 7 5 Robot Miss Streak 7 | 1 4 7 Penetration Max . | . . . Secondary Targets . | . . . Shots Hit Robots 44 | 2 17 25 Core Hits 23 | 1 8 14 Critical Kills . | . . . Critical Parts Destroyed . | . . . Critical Strikes 2 | . . 2 Blast 2 | . . 2 Melee Attacks . | . . . Impact . | . . . Slashing . | . . . Piercing . | . . . Sneak Attacks . | . . . Combat Hostiles . | . . . Follow-up Attacks . | . . . Damage Inflicted 888 | 25 269 594 Guns 199 | 25 128 46 Cannons 554 | . 141 413 Explosions 122 | . . 122 Melee . | . . . Ramming 13 | . . 13 Kinetic 383 | . 132 251 Thermal 386 | . 71 315 Explosive . | . . . Electromagnetic 106 | 25 66 15 Impact . | . . . Slashing . | . . . Piercing . | . . . Highest Corruption . | . . . Average Corruption . | . . . Corruption Purged . | . . . Corruption Blocked . | . . . Overload Shots . | . . . Overflow Damage 7 | . . 7 Projectiles . | . . . Explosions 7 | . . 7 Melee . | . . . Knockbacks 4 | . . 4 Impact . | . . . Kinetic 3 | . . 3 Secondary 1 | . . 1 Self-Inflicted Damage 46 | . . 46 Shots 1 | . . 1 Rammed 8 | . . 8 Targets Rammed 11 | . . 11 Kicked 3 | . . 3 Crushed . | . . . Highest Temperature 299 | . 129 299 Average Temperature 85 | . 44 99 Received Heat Transfer 678 | . 66 612 Effects 1 | . . 1 Energy Bleed 1 | . . 1 Siege Activations . | . . . Robots Corrupted . | . . . Combat Hostiles . | . . . Parts Fried . | . . . Impact Corruptions . | . . . Robots Melted . | . . . Combat Hostiles . | . . . Parts Melted . | . . . Heat Transferred 655 | . 148 507 Parts Sabotaged . | . . . Parts Stolen . | . . . Parts Stripped . | . . . Power Chain Reactions 1 | . . 1 Alert | -11 -10 -9 ------- Run | Yrd Mat Mat Peak Influence 205 | . 132 205 Initial 35 | . . 35 Average 66 | . 80 81 Maximum Alert Level 1 | . . 1 Low Security (%) 97 | 100 100 93 Level 1 2 | . . 6 Level 2 . | . . . Level 3 . | . . . Level 4 . | . . . Level 5 . | . . . High Security . | . . . Max Security . | . . . Squads Dispatched 4 | . 3 1 Investigation 1 | . 1 . Extermination . | . . . Reinforcement 3 | . 2 1 Assault . | . . . Garrison . | . . . Intercept . | . . . Searches Triggered . | . . . Construction Impeded . | . . . Haulers Reinforced . | . . . Active Scanning Responses . | . . . Cargo Convoy Interrupts . | . . . Stealth | -11 -10 -9 --------- Run | Yrd Mat Mat Distress Signals 3 | . . 3 Communications Jammed . | . . . Distress Signals . | . . . Times Spotted 23 | . 10 13 Peak Tracking Total 5 | . 5 5 Tactical Retreats 1 | . . 1 Traps | -11 -10 -9 ------- Run | Yrd Mat Mat Traps Triggered 2 | . 2 . Indirectly . | . . . Trap Hack Attempts . | . . . Triggered . | . . . Disarmed . | . . . Reprogrammed . | . . . Reused . | . . . Traps Extracted . | . . . Installed . | . . . Triggered . | . . . Machines | -11 -10 -9 ---------- Run | Yrd Mat Mat Machines Disabled 1 | . 1 . Max in Single Turn 1 | . 1 . Machines Repaired . | . . . Machines Dismantled . | . . . Machines Sabotaged . | . . . Overloaded Fab Kills . | . . . Hacking | -11 -10 -9 --------- Run | Yrd Mat Mat Machines Accessed 1 | . 1 . Terminals 1 | . 1 . Fabricators . | . . . Repair Stations . | . . . Recycling Units . | . . . Scanalyzers . | . . . Garrison Access . | . . . Total Hacks 2 | . 2 . Successful . | . . . Failed 2 | . 2 . Catastrophic . | . . . Database Lockouts . | . . . Manual . | . . . Terminals 2 | . 2 . Fabricators . | . . . Repair Stations . | . . . Recycling Units . | . . . Scanalyzers . | . . . Garrison Access . | . . . Terminal Hacks . | . . . Fabricator Hacks . | . . . Repair Station Hacks . | . . . Recycling Unit Hacks . | . . . Scanalyzer . | . . . Garrison Access Hacks . | . . . Unauthorized Hacks . | . . . Terminals . | . . . Fabricators . | . . . Repair Stations . | . . . Recycling Units . | . . . Scanalyzers . | . . . Garrison Access . | . . . Data Cores Recovered . | . . . Used . | . . . Hacking Detections 1 | . 1 . Full Trace Events . | . . . Feedback Events . | . . . Feedback Blocked . | . . . Robot Schematics Acquired . | . . . Robots Built . | . . . Authchips . | . . . Time . | . . . Total Robot Build Rating . | . . . Part Schematics Acquired . | . . . Parts Built . | . . . Authchips . | . . . Time . | . . . Total Part Build Rating . | . . . Parts Repaired . | . . . Time . | . . . Parts Recycled . | . . . Recycled Matter . | . . . Retrieved Matter . | . . . Retrieved Components . | . . . Parts Scanalyzed . | . . . Part Schematics Acquired . | . . . Parts Damaged . | . . . Bothacking | -11 -10 -9 ------------ Run | Yrd Mat Mat Used RIF Installer . | . . . Robots Hacked . | . . . Non-combat . | . . . Combat . | . . . Robot Hacks Applied . | . . . Relay Couplers Released . | . . . Fabnet Peak Effective % . | . . . Robots Rewired . | . . . Allies Hacked . | . . . Hacks Repelled . | . . . Allies | -11 -10 -9 -------- Run | Yrd Mat Mat Total Allies . | . . . Largest Group . | . . . Highest-Rated Group . | . . . Highest-Rated Ally . | . . . Total Orders . | . . . Ally Attacks . | . . . Total Damage . | . . . Kills . | . . . Allies Corrupted . | . . . Allies Melted . | . . . Intel | -11 -10 -9 ------- Run | Yrd Mat Mat Robot Analysis Total . | . . . Derelict Logs Recovered . | . . . Drone Launches . | . . . Drone Recoveries . | . . . Exploration | -11 -10 -9 ------------- Run | Yrd Mat Mat Turns Passed 1188 | 209 450 529 Spaces Moved 650 | 72 262 316 Core 34 | 23 . 11 Treads . | . . . Legs 616 | 49 262 305 Wheels . | . . . Hover . | . . . Flight . | . . . Fastest Speed 50 | 50 120 100 Average Speed 118 | 110 120 119 Slowest Speed 200 | 200 120 150 Overloaded Moves . | . . . Propulsion Burnouts . | . . . Robots Hopped . | . . . Cave-ins Triggered . | . . . Exploration Rate (%) 15 | 7 23 17 Regions Visited 2 Branch Regions . Pre-discovered Areas . | . . . Known Exits Taken . | . . . Unknown Exits Taken 2 | 1 1 . Scrap Searched . | . . . Spaces Dug . | . . . Terrain Destroyed 5 | . . 5 Melee . | . . . Projectile . | . . . AOE 5 | . . 5 Terrain Rammed . | . . . Walls Destroyed . | . . . Machines Disabled . | . . . Actions | -11 -10 -9 --------- Run | Yrd Mat Mat Total 983 | 197 369 417 Wait 237 | 109 76 52 Move 648 | 71 261 316 Hop . | . . . Pick Up 18 | 7 6 5 Fast Attach . | . . . Attach 18 | 6 5 7 Detach 3 | . 3 . Swap 1 | . 1 . Drop 4 | . 2 2 Fire 43 | 4 15 24 Melee . | . . . Ram 8 | . . 8 Kick 3 | . . 3 Crush . | . . . Escape Stasis . | . . . Rewire . | . . . Trap . | . . . Miscellaneous . | . . . Route ------- -11/Scrapyard -10/Materials -9/Materials History --------- Turn | Location | Event 20 | -11/Scrapyard | Discovered new exit (range 16) 210 | -11/Scrapyard | Entered Materials 305 | -10/Materials | Build established: Mutant 595 | -10/Materials | Discovered new exit (range 8) 660 | -10/Materials | Entered another Materials area 660 | -9/Materials | Evolved 2 slots: Propulsion x1, Utility x1 1097 | -9/Materials | Lost 8 parts (1p3n4w) 1147 | -9/Materials | Core integrity fell below 50% 1175 | -9/Materials | Core integrity fell below 20% 1189 | -9/Materials | Destroyed by Y-45 Defender with Beam Rifle Last Messages --------------- Acquired 21 matter. U-05 Engineer lays Concrete. U-05 Engineer builds a Wall. U-05 Engineer lays Concrete. Acquired 28 matter. U-05 Engineer lays Concrete. K-01 Serf collects debris. M-13 Machinist repairs Y-45 Defender. Aluminum Leg destroyed. Kicked Y-45 Defender. Critical hit (Burn: +37). Aluminum Leg destroyed. Slammed into Y-45 Defender. W-16 Scout sends out distress signal. Slammed into Y-45 Defender. Destabilizing: Core damaged (-16). Slammed into Y-45 Defender. Sensor Array destroyed. Slammed into Y-45 Defender. M-13 Machinist repairs Y-45 Defender. Map ----- +----------------------------------------------------+ | ?????????????????????????????????????????????????? | | ?????????????????????????????????????????????????? | | ?????????????????????????????????????????????????? | | ?????????????????????????????????????????????????? | | ?????????????????????????????????????????????????? | | ?????????????????????????????????????????????????? | | ?????????????????????????????????????????????????? | | ?????????????????????????????????????????????????? | | ?????????????????????????????????????????????????? | | ?????????????????????????????????????????????????? | | ?????????????????????????????????????????????????? | | ?????????????????????????????????????????????????? | | ?????????????????????????????????????????????????? | | ?????????????????????????????????????? ??????????? | | ?????????????????????????????????????? ??????????? | | ?????????????????????????????????????? ??????????? | | ????????????????????????????????????? ??????????? | | ????????????????????????????????????? ??????????? | | ????????????????????????????????????? ??????????? | | ????????????????????????????????????? #?????????? | | ?????????????????????????????????????# #?????????? | | ?????????????????????????????????????# #?######### | | ?????????????????????????????????????# ### !!! | | ?????????????????????????????????????# ##" !!! | | ????????????????????????######???????# ##" ! | | ????????????????????????#@ #?????### ### % | | ????????????????????????# #?????# % ##+###### | | ????????????????????????# % ####### % | | ????????????????????????# Y%gm% % | | ????????????????????????# #%##### % | | ????????????????????????######%#???# % #######+# | | ?????????????????????????????# #???###+###??????? | | ?????????????????????????????# #?????????????????? | | ?????????????????????????????# #?????????????????? | | ?????????????????????????????# #?????????????????? | | ?????????????????????????????# #?????????????????? | | ?????????????????????????????#%#?????????????????? | | ?????????????????????????????# #?????????????????? | | ?????????????????????????????#%#?????????????????? | | ?????????????????????????????# #?????????????????? | | ?????????????????????????????#%#?????????????????? | | ?????????????????????????????# #?????????????????? | | ?????????????????????????????# #?????????????????? | | ?????????????????????????????# #?????????????????? | | ?????????????????????????????# #???###########???? | | ?????????????????????????????# #???# "T" [ #???? | | ?????????????????????????????# #???# #???? | | ?????????????????????????????# #???# """ #???? | | ?????????????????????????????# #???# """ #???? | | ?????????????????????????????# #??## """ #???? | +----------------------------------------------------+ Best States ------------- Heat Dissipation 28 Energy Generation 10 Energy Capacity 250 Matter Stores 300 Matter Capacity 300 Sight Range 16 Robot Scan Range 14 Terrain Scan Density 10 Power Shielding 33 Evasion (%) 55 Item Schematics ----------------- None Robot Schematics ------------------ None Fabricated ------------ Nothing Alien Tech Used ----------------- None Achievements -------------- None Challenges ------------ None Game ------ Seed SurveybotSurgeStripper Manual? 0 Play Time 00:20:00 Cumulative 3.0 hours Start 2024.06.14 @ 01:05:51 End 2024.06.14 @ 01:25:20 Sessions 1 Manual Loads 0 Difficulty Rogue Special Mode None Game No. 7 Rogue 4 Adventurer 1 Explorer 2 Win Type - Total 0 Types 0/0/0/0/0/0/0/0/0 Lore% 12 Gallery% 11 Achievement% 13 Wizard Run 0 Options --------- Layout 2 ASCII 0 Keyboard 0 Movement Mouse Keybinds 0 Fullscreen 1 Font 48/Smallcaps Map View 50x44 Zoom Use 0% Tactical HUD 0 Map Filters NONE Filters NONE Steam 1 RUN: 6b7bb276-1695-4348-b9fc-989556139198